[Event "Titled Tuesday Blitz August 24 2021"]
[White "Purtseladze, Maka"]
[Black "Bologan, Victor"]
[WhiteFideId "13602659"]
[BlackFideId "13900048"]
[WhiteElo "2178"]
[BlackElo "2511"]
[Result "1-0"]
[Round "05"]
[TimeControl "180+1"]
[Date "2021.08.24"]
[WhiteClock "0:00:41"]
[BlackClock "0:00:50"]

1. d4 {[%clk 0:03:00]}  Nf6 {[%clk 0:02:58]} 2. Bg5 {[%clk 0:02:59]}  e6 {[%clk 0:02:56]} 3. e4 {[%clk 0:02:59]}  c5 {[%clk 0:02:55]} 4. d5 {[%clk 0:02:52]}  h6 {[%clk 0:02:47]} 5. Bxf6 {[%clk 0:02:51]}  Qxf6 {[%clk 0:02:46]} 6. Nc3 {[%clk 0:02:51]}  a6 {[%clk 0:02:40]} 7. a4 {[%clk 0:02:51]}  d6 {[%clk 0:02:36]} 8. g3 {[%clk 0:02:43]}  Nd7 {[%clk 0:02:21]} 9. Bh3 {[%clk 0:02:36]}  Ne5 {[%clk 0:02:18]} 10. f4 {[%clk 0:02:35]}  Nc4 {[%clk 0:02:16]} 11. Nge2 {[%clk 0:02:09]}  Nxb2 {[%clk 0:02:06]} 12. Qb1 {[%clk 0:01:50]}  Nc4 {[%clk 0:02:01]} 13. Qb3 {[%clk 0:01:49]}  Na5 {[%clk 0:01:55]} 14. Qa2 {[%clk 0:01:42]}  exd5 {[%clk 0:01:51]} 15. Bxc8 {[%clk 0:01:39]}  Rxc8 {[%clk 0:01:50]} 16. Nxd5 {[%clk 0:01:35]}  Qd8 {[%clk 0:01:47]} 17. c4 {[%clk 0:01:32]}  Be7 {[%clk 0:01:45]} 18. O-O {[%clk 0:01:31]}  O-O {[%clk 0:01:45]} 19. Rab1 {[%clk 0:01:32]}  Re8 {[%clk 0:01:44]} 20. Rfd1 {[%clk 0:01:31]}  Bf8 {[%clk 0:01:38]} 21. Nec3 {[%clk 0:01:26]}  g6 {[%clk 0:01:28]} 22. Nb6 {[%clk 0:01:25]}  Rc6 {[%clk 0:01:26]} 23. Ncd5 {[%clk 0:01:26]}  Bg7 {[%clk 0:01:25]} 24. Qd2 {[%clk 0:01:19]}  Nxc4 {[%clk 0:01:21]} 25. Nxc4 {[%clk 0:01:19]}  Rxe4 {[%clk 0:01:21]} 26. Ncb6 {[%clk 0:01:04]}  c4 {[%clk 0:01:15]} 27. Qc2 {[%clk 0:00:53]}  f5 {[%clk 0:01:09]} 28. a5 {[%clk 0:00:53]}  c3 {[%clk 0:01:05]} 29. Rb4 {[%clk 0:00:49]}  Kh7 {[%clk 0:00:56]} 30. Rxe4 {[%clk 0:00:47]}  fxe4 {[%clk 0:00:56]} 31. Qxe4 {[%clk 0:00:48]}  c2 {[%clk 0:00:56]} 32. Rc1 {[%clk 0:00:48]}  Rc5 {[%clk 0:00:50]} 33. Rxc2 {[%clk 0:00:47]}  Rxa5 {[%clk 0:00:50]} 34. Rc8 {[%clk 0:00:41]} 1-0


[Site "https://www.chess.com"]

[Event "Titled Tuesday Blitz August 24 2021"]
[White "Quintiliano Pinto, Renato R."]
[Black "Baches Garcia, Guillermo"]
[WhiteFideId "2117568"]
[BlackFideId "2209764"]
[WhiteElo "2439"]
[BlackElo "2471"]
[Result "0-1"]
[Round "05"]
[TimeControl "180+1"]
[Date "2021.08.24"]
[WhiteClock "0:00:03"]
[BlackClock "0:00:08"]

1. e4 {[%clk 0:03:00]}  c5 {[%clk 0:02:37]} 2. Nf3 {[%clk 0:02:59]}  d6 {[%clk 0:02:37]} 3. d4 {[%clk 0:02:58]}  cxd4 {[%clk 0:02:38]} 4. Nxd4 {[%clk 0:02:58]}  Nf6 {[%clk 0:02:39]} 5. Nc3 {[%clk 0:02:59]}  Nc6 {[%clk 0:02:39]} 6. Bg5 {[%clk 0:02:58]}  e6 {[%clk 0:02:40]} 7. Bb5 {[%clk 0:02:55]}  Bd7 {[%clk 0:02:39]} 8. Qd3 {[%clk 0:02:55]}  h6 {[%clk 0:02:35]} 9. Bxf6 {[%clk 0:02:49]}  Qxf6 {[%clk 0:02:27]} 10. Bxc6 {[%clk 0:02:42]}  bxc6 {[%clk 0:02:23]} 11. O-O-O {[%clk 0:02:34]}  Be7 {[%clk 0:02:13]} 12. Rhf1 {[%clk 0:02:28]}  Qf4+ {[%clk 0:02:03]} 13. Kb1 {[%clk 0:02:25]}  Qxh2 {[%clk 0:02:03]} 14. f4 {[%clk 0:02:23]}  Qh5 {[%clk 0:01:49]} 15. e5 {[%clk 0:01:57]}  d5 {[%clk 0:01:41]} 16. f5 {[%clk 0:01:22]}  exf5 {[%clk 0:01:35]} 17. Nxf5 {[%clk 0:01:18]}  Bxf5 {[%clk 0:01:31]} 18. Rxf5 {[%clk 0:01:17]}  Qg6 {[%clk 0:01:30]} 19. Ne2 {[%clk 0:01:03]}  O-O {[%clk 0:01:22]} 20. Nf4 {[%clk 0:00:47]}  Qg4 {[%clk 0:01:15]} 21. Nh3 {[%clk 0:00:25]}  Rab8 {[%clk 0:01:08]} 22. Rdf1 {[%clk 0:00:22]}  Qxg2 {[%clk 0:00:58]} 23. Rg1 {[%clk 0:00:14]}  Qe4 {[%clk 0:00:49]} 24. Qg3 {[%clk 0:00:10]}  g6 {[%clk 0:00:45]} 25. Rf3 {[%clk 0:00:10]}  Rb4 {[%clk 0:00:33]} 26. Nf2 {[%clk 0:00:09]}  Qh4 {[%clk 0:00:23]} 27. Qg2 {[%clk 0:00:09]}  Rfb8 {[%clk 0:00:20]} 28. b3 {[%clk 0:00:09]}  Bg5 {[%clk 0:00:13]} 29. Rg3 {[%clk 0:00:06]}  Qf4 {[%clk 0:00:08]} 30. Nh3 {[%clk 0:00:06]}  Qxe5 {[%clk 0:00:07]} 31. Nxg5 {[%clk 0:00:05]}  hxg5 {[%clk 0:00:07]} 32. Rxg5 {[%clk 0:00:06]}  Qf6 {[%clk 0:00:07]} 33. Rf1 {[%clk 0:00:06]}  Rf4 {[%clk 0:00:07]} 34. Rg1 {[%clk 0:00:06]}  Rf2 {[%clk 0:00:06]} 35. Qg3 {[%clk 0:00:06]}  Rf1+ {[%clk 0:00:06]} 36. Rxf1 {[%clk 0:00:04]}  Qxf1+ {[%clk 0:00:07]} 37. Kb2 {[%clk 0:00:05]}  Qf6+ {[%clk 0:00:07]} 38. Kb1 {[%clk 0:00:05]}  Re8 {[%clk 0:00:08]} 39. Rg4 {[%clk 0:00:06]}  Kg7 {[%clk 0:00:07]} 40. a4 {[%clk 0:00:05]}  Re4 {[%clk 0:00:07]} 41. Rxe4 {[%clk 0:00:02]}  dxe4 {[%clk 0:00:08]} 42. Qe3 {[%clk 0:00:03]}  Qf3 {[%clk 0:00:08]} 43. Qd4+ {[%clk 0:00:04]}  Kh7 {[%clk 0:00:08]} 44. Qxa7 {[%clk 0:00:03]}  e3 {[%clk 0:00:08]} 0-1


[Site "https://www.chess.com"]

[Event "Titled Tuesday Blitz August 24 2021"]
[White "Reprintsev, Alexander"]
[Black "Ulko, Jaroslav"]
[WhiteFideId "14100541"]
[BlackFideId "4116658"]
[WhiteElo "2126"]
[BlackElo "2304"]
[Result "0-1"]
[Round "05"]
[TimeControl "180+1"]
[Date "2021.08.24"]
[WhiteClock "0:01:17"]
[BlackClock "0:01:48"]

1. e4 {[%clk 0:02:54]}  e5 {[%clk 0:02:50]} 2. f4 {[%clk 0:02:53]}  exf4 {[%clk 0:02:49]} 3. Bc4 {[%clk 0:02:53]}  d6 {[%clk 0:02:47]} 4. Nc3 {[%clk 0:02:48]}  c6 {[%clk 0:02:44]} 5. d4 {[%clk 0:02:44]}  Qh4+ {[%clk 0:02:37]} 6. Kf1 {[%clk 0:02:41]}  Bg4 {[%clk 0:02:20]} 7. Nf3 {[%clk 0:02:39]}  Qf6 {[%clk 0:02:12]} 8. Qd2 {[%clk 0:02:00]}  g5 {[%clk 0:02:07]} 9. h4 {[%clk 0:01:58]}  h6 {[%clk 0:02:00]} 10. hxg5 {[%clk 0:01:57]}  hxg5 {[%clk 0:02:01]} 11. Rxh8 {[%clk 0:01:57]}  Qxh8 {[%clk 0:02:02]} 12. Nxg5 {[%clk 0:01:55]}  Qh1+ {[%clk 0:02:01]} 13. Kf2 {[%clk 0:01:54]}  Qh4+ {[%clk 0:02:00]} 14. Kg1 {[%clk 0:01:52]}  Qxg5 {[%clk 0:02:00]} 15. Qxf4 {[%clk 0:01:53]}  Qxf4 {[%clk 0:02:00]} 16. Bxf4 {[%clk 0:01:53]}  Nf6 {[%clk 0:01:57]} 17. Rf1 {[%clk 0:01:47]}  Nbd7 {[%clk 0:01:55]} 18. Bg5 {[%clk 0:01:47]}  Be7 {[%clk 0:01:52]} 19. e5 {[%clk 0:01:46]}  dxe5 {[%clk 0:01:51]} 20. dxe5 {[%clk 0:01:38]}  Nxe5 {[%clk 0:01:49]} 21. Bxf6 {[%clk 0:01:36]}  Bxf6 {[%clk 0:01:50]} 22. Rxf6 {[%clk 0:01:34]}  Nxc4 {[%clk 0:01:50]} 23. Rf4 {[%clk 0:01:17]}  Be6 {[%clk 0:01:48]} 0-1


[Site "https://www.chess.com"]

[Event "Titled Tuesday Blitz August 24 2021"]
[White "Rustemov, Alexander"]
[Black "Aghasiyev, Kamal"]
[WhiteFideId "4119002"]
[BlackFideId "13402854"]
[WhiteElo "2725"]
[BlackElo "2210"]
[Result "0-1"]
[Round "05"]
[TimeControl "180+1"]
[Date "2021.08.24"]
[WhiteClock "0:00:44"]
[BlackClock "0:00:17"]

1. d4 {[%clk 0:03:00]}  d5 {[%clk 0:02:59]} 2. c4 {[%clk 0:02:59]}  e6 {[%clk 0:02:59]} 3. Nc3 {[%clk 0:02:58]}  Nf6 {[%clk 0:02:59]} 4. Bg5 {[%clk 0:02:57]}  Nbd7 {[%clk 0:02:57]} 5. e3 {[%clk 0:02:56]}  Be7 {[%clk 0:02:56]} 6. Nf3 {[%clk 0:02:55]}  h6 {[%clk 0:02:56]} 7. Bh4 {[%clk 0:02:55]}  O-O {[%clk 0:02:55]} 8. Rc1 {[%clk 0:02:54]}  c5 {[%clk 0:02:54]} 9. dxc5 {[%clk 0:02:51]}  dxc4 {[%clk 0:02:53]} 10. c6 {[%clk 0:02:50]}  bxc6 {[%clk 0:02:44]} 11. Bxc4 {[%clk 0:02:49]}  c5 {[%clk 0:02:39]} 12. O-O {[%clk 0:02:47]}  Bb7 {[%clk 0:02:39]} 13. Qe2 {[%clk 0:02:47]}  Ne4 {[%clk 0:02:32]} 14. Bxe7 {[%clk 0:02:43]}  Qxe7 {[%clk 0:02:27]} 15. Nxe4 {[%clk 0:02:30]}  Bxe4 {[%clk 0:02:25]} 16. Bb5 {[%clk 0:02:14]}  Nb6 {[%clk 0:02:14]} 17. Nd2 {[%clk 0:02:09]}  Bb7 {[%clk 0:01:47]} 18. Ba6 {[%clk 0:02:05]}  Rad8 {[%clk 0:01:42]} 19. Bxb7 {[%clk 0:02:00]}  Qxb7 {[%clk 0:01:42]} 20. Rc2 {[%clk 0:02:00]}  Rd5 {[%clk 0:01:34]} 21. Rfc1 {[%clk 0:01:58]}  Rfd8 {[%clk 0:01:34]} 22. g3 {[%clk 0:01:56]}  c4 {[%clk 0:01:30]} 23. f3 {[%clk 0:01:27]}  Rd3 {[%clk 0:01:17]} 24. Kf2 {[%clk 0:01:26]}  Qd5 {[%clk 0:01:01]} 25. Ne4 {[%clk 0:01:17]}  Qh5 {[%clk 0:00:53]} 26. Kg2 {[%clk 0:01:14]}  Nd5 {[%clk 0:00:52]} 27. Re1 {[%clk 0:00:52]}  Nxe3+ {[%clk 0:00:48]} 28. Qxe3 {[%clk 0:00:53]}  Rxe3 {[%clk 0:00:47]} 29. Rxe3 {[%clk 0:00:54]}  Rd3 {[%clk 0:00:41]} 30. Rxd3 {[%clk 0:00:51]}  cxd3 {[%clk 0:00:41]} 31. Rd2 {[%clk 0:00:52]}  Qd5 {[%clk 0:00:38]} 32. b3 {[%clk 0:00:51]}  Qd4 {[%clk 0:00:36]} 33. Nf2 {[%clk 0:00:51]}  Qc3 {[%clk 0:00:31]} 34. Rxd3 {[%clk 0:00:51]}  Qb2 {[%clk 0:00:31]} 35. a4 {[%clk 0:00:51]}  f5 {[%clk 0:00:29]} 36. h4 {[%clk 0:00:51]}  g5 {[%clk 0:00:29]} 37. hxg5 {[%clk 0:00:49]}  hxg5 {[%clk 0:00:29]} 38. f4 {[%clk 0:00:49]}  Kg7 {[%clk 0:00:25]} 39. Re3 {[%clk 0:00:48]}  gxf4 {[%clk 0:00:18]} 40. gxf4 {[%clk 0:00:48]}  Qd4 {[%clk 0:00:18]} 41. Kf3 {[%clk 0:00:48]}  Kf6 {[%clk 0:00:18]} 42. Kg3 {[%clk 0:00:44]}  Qxe3+ {[%clk 0:00:17]} 0-1


[Site "https://www.chess.com"]

[Event "Titled Tuesday Blitz August 24 2021"]
[White "Samsonkin, Artiom"]
[Black "Farahat, Ali"]
[WhiteFideId "13503111"]
[BlackFideId "10600507"]
[WhiteElo "2513"]
[BlackElo "2321"]
[Result "1-0"]
[Round "05"]
[TimeControl "180+1"]
[Date "2021.08.24"]
[WhiteClock "0:00:09"]
[BlackClock "0:00:04"]

1. e4 {[%clk 0:03:00]}  e5 {[%clk 0:01:55]} 2. Nf3 {[%clk 0:02:59]}  Nc6 {[%clk 0:01:55]} 3. d4 {[%clk 0:03:00]}  exd4 {[%clk 0:01:50]} 4. Bc4 {[%clk 0:03:00]}  Nf6 {[%clk 0:01:49]} 5. e5 {[%clk 0:03:01]}  d5 {[%clk 0:01:48]} 6. Bb5 {[%clk 0:03:01]}  Ne4 {[%clk 0:01:48]} 7. Nxd4 {[%clk 0:03:01]}  Bc5 {[%clk 0:01:42]} 8. Be3 {[%clk 0:02:59]}  O-O {[%clk 0:01:38]} 9. Nxc6 {[%clk 0:02:59]}  bxc6 {[%clk 0:01:37]} 10. Bxc5 {[%clk 0:03:00]}  Nxc5 {[%clk 0:01:37]} 11. Bxc6 {[%clk 0:03:01]}  Rb8 {[%clk 0:01:36]} 12. Qxd5 {[%clk 0:02:58]}  Qe7 {[%clk 0:01:36]} 13. O-O {[%clk 0:02:56]}  Rxb2 {[%clk 0:01:33]} 14. Nc3 {[%clk 0:02:56]}  Be6 {[%clk 0:01:27]} 15. Qf3 {[%clk 0:02:41]}  Rxc2 {[%clk 0:01:25]} 16. Qe3 {[%clk 0:02:31]}  Rd8 {[%clk 0:01:16]} 17. Rad1 {[%clk 0:02:19]}  Rxd1 {[%clk 0:01:12]} 18. Rxd1 {[%clk 0:02:19]}  h6 {[%clk 0:01:13]} 19. g3 {[%clk 0:02:04]}  Bh3 {[%clk 0:00:55]} 20. Rb1 {[%clk 0:01:44]}  Bf5 {[%clk 0:00:45]} 21. Rd1 {[%clk 0:01:30]}  Bh3 {[%clk 0:00:44]} 22. Nd5 {[%clk 0:01:22]}  Qe6 {[%clk 0:00:43]} 23. Nb4 {[%clk 0:01:22]}  Rc4 {[%clk 0:00:23]} 24. Bd5 {[%clk 0:01:00]}  Qg4 {[%clk 0:00:23]} 25. f3 {[%clk 0:01:00]}  Qd7 {[%clk 0:00:22]} 26. a3 {[%clk 0:00:39]}  Ne6 {[%clk 0:00:20]} 27. Qxa7 {[%clk 0:00:34]}  Qd8 {[%clk 0:00:16]} 28. Kf2 {[%clk 0:00:31]}  Rc3 {[%clk 0:00:15]} 29. a4 {[%clk 0:00:20]}  Qg5 {[%clk 0:00:15]} 30. Bxe6 {[%clk 0:00:15]}  fxe6 {[%clk 0:00:15]} 31. Qd4 {[%clk 0:00:16]}  Rb3 {[%clk 0:00:14]} 32. a5 {[%clk 0:00:15]}  Qe7 {[%clk 0:00:11]} 33. Qd8+ {[%clk 0:00:15]}  Qxd8 {[%clk 0:00:11]} 34. Rxd8+ {[%clk 0:00:15]}  Kh7 {[%clk 0:00:12]} 35. Rb8 {[%clk 0:00:15]}  Ra3 {[%clk 0:00:12]} 36. a6 {[%clk 0:00:15]}  h5 {[%clk 0:00:12]} 37. Rb7 {[%clk 0:00:11]}  Bf5 {[%clk 0:00:12]} 38. a7 {[%clk 0:00:11]}  Ra4 {[%clk 0:00:12]} 39. Nc6 {[%clk 0:00:10]}  Ra2+ {[%clk 0:00:08]} 40. Ke3 {[%clk 0:00:10]}  Ra3+ {[%clk 0:00:08]} 41. Kd4 {[%clk 0:00:10]}  Bh3 {[%clk 0:00:04]} 42. Rb8 {[%clk 0:00:09]}  Bf1 {[%clk 0:00:04]} 43. a8=Q {[%clk 0:00:09]} 1-0


[Site "https://www.chess.com"]

[Event "Titled Tuesday Blitz August 24 2021"]
[White "Seo, Jung Min"]
[Black "Zierk, Steven"]
[WhiteFideId "1734687"]
[BlackFideId "2034255"]
[WhiteElo "2486"]
[BlackElo "2494"]
[Result "0-1"]
[Round "05"]
[TimeControl "180+1"]
[Date "2021.08.24"]
[WhiteClock "0:00:43"]
[BlackClock "0:01:28"]

1. e4 {[%clk 0:02:06]}  e6 {[%clk 0:02:58]} 2. d4 {[%clk 0:02:06]}  d5 {[%clk 0:02:58]} 3. Nd2 {[%clk 0:02:06]}  c5 {[%clk 0:02:58]} 4. exd5 {[%clk 0:02:06]}  Qxd5 {[%clk 0:02:59]} 5. dxc5 {[%clk 0:02:05]}  Nf6 {[%clk 0:02:56]} 6. Ngf3 {[%clk 0:02:04]}  Bxc5 {[%clk 0:02:54]} 7. Bd3 {[%clk 0:02:04]}  Nc6 {[%clk 0:02:50]} 8. Qe2 {[%clk 0:02:03]}  Nb4 {[%clk 0:02:41]} 9. Bb5+ {[%clk 0:02:00]}  Bd7 {[%clk 0:02:41]} 10. Bxd7+ {[%clk 0:02:00]}  Qxd7 {[%clk 0:02:30]} 11. Ne4 {[%clk 0:01:47]}  Nxe4 {[%clk 0:02:24]} 12. Qxe4 {[%clk 0:01:47]}  Qc6 {[%clk 0:02:19]} 13. Qxc6+ {[%clk 0:01:46]}  bxc6 {[%clk 0:02:19]} 14. Ke2 {[%clk 0:01:30]}  Nxc2 {[%clk 0:02:18]} 15. Rb1 {[%clk 0:01:29]}  Nd4+ {[%clk 0:02:14]} 16. Nxd4 {[%clk 0:01:26]}  Bxd4 {[%clk 0:02:15]} 17. Be3 {[%clk 0:01:26]}  O-O-O {[%clk 0:02:15]} 18. Bxd4 {[%clk 0:01:19]}  Rxd4 {[%clk 0:02:14]} 19. Rhd1 {[%clk 0:01:19]}  Rhd8 {[%clk 0:02:14]} 20. Rxd4 {[%clk 0:01:19]}  Rxd4 {[%clk 0:02:15]} 21. Rc1 {[%clk 0:01:19]}  Kc7 {[%clk 0:02:14]} 22. b3 {[%clk 0:01:19]}  Kd6 {[%clk 0:02:12]} 23. Rc3 {[%clk 0:01:18]}  a5 {[%clk 0:02:11]} 24. g3 {[%clk 0:01:17]}  e5 {[%clk 0:02:09]} 25. h4 {[%clk 0:01:17]}  f5 {[%clk 0:02:07]} 26. Ke3 {[%clk 0:01:16]}  c5 {[%clk 0:02:06]} 27. Ke2 {[%clk 0:01:15]}  Kd5 {[%clk 0:02:06]} 28. Ke3 {[%clk 0:01:15]}  g6 {[%clk 0:02:03]} 29. Rc1 {[%clk 0:01:13]}  f4+ {[%clk 0:02:00]} 30. Ke2 {[%clk 0:01:13]}  h6 {[%clk 0:01:56]} 31. Ra1 {[%clk 0:01:08]}  Ke4 {[%clk 0:01:48]} 32. f3+ {[%clk 0:01:05]}  Kd5 {[%clk 0:01:48]} 33. Rg1 {[%clk 0:01:02]}  fxg3 {[%clk 0:01:44]} 34. Rxg3 {[%clk 0:01:02]}  Rxh4 {[%clk 0:01:44]} 35. Rxg6 {[%clk 0:01:02]}  Rh2+ {[%clk 0:01:42]} 36. Kd3 {[%clk 0:00:59]}  h5 {[%clk 0:01:40]} 37. a4 {[%clk 0:00:53]}  Rb2 {[%clk 0:01:31]} 38. Kc3 {[%clk 0:00:46]}  Rf2 {[%clk 0:01:30]} 39. Rf6 {[%clk 0:00:46]}  h4 {[%clk 0:01:29]} 40. Kd3 {[%clk 0:00:43]}  Rxf3+ {[%clk 0:01:28]} 0-1


[Site "https://www.chess.com"]

[Event "Titled Tuesday Blitz August 24 2021"]
[White "Sonis, Francesco"]
[Black "Cunha, Lucas Aguiar"]
[WhiteFideId "895733"]
[BlackFideId "2125404"]
[WhiteElo "2373"]
[BlackElo "2361"]
[Result "1-0"]
[Round "05"]
[TimeControl "180+1"]
[Date "2021.08.24"]
[WhiteClock "0:01:50"]
[BlackClock "0:00:23"]

1. d4 {[%clk 0:03:00]}  Nf6 {[%clk 0:02:59]} 2. c4 {[%clk 0:03:00]}  e6 {[%clk 0:03:00]} 3. Nc3 {[%clk 0:02:58]}  Bb4 {[%clk 0:03:00]} 4. e3 {[%clk 0:02:58]}  O-O {[%clk 0:02:59]} 5. Bd2 {[%clk 0:02:58]}  Re8 {[%clk 0:02:59]} 6. Nf3 {[%clk 0:02:58]}  b6 {[%clk 0:02:59]} 7. a3 {[%clk 0:02:58]}  Bxc3 {[%clk 0:02:55]} 8. Bxc3 {[%clk 0:02:59]}  Ne4 {[%clk 0:02:55]} 9. Rc1 {[%clk 0:02:58]}  Bb7 {[%clk 0:02:55]} 10. d5 {[%clk 0:02:58]}  d6 {[%clk 0:02:47]} 11. dxe6 {[%clk 0:02:40]}  Rxe6 {[%clk 0:02:47]} 12. Be2 {[%clk 0:02:38]}  Rg6 {[%clk 0:02:45]} 13. O-O {[%clk 0:02:36]}  Nd7 {[%clk 0:02:39]} 14. Be1 {[%clk 0:02:35]}  Qf6 {[%clk 0:02:35]} 15. g3 {[%clk 0:02:28]}  Qxb2 {[%clk 0:02:30]} 16. Nd4 {[%clk 0:02:26]}  Ng5 {[%clk 0:02:07]} 17. h4 {[%clk 0:02:23]}  Ne4 {[%clk 0:02:05]} 18. h5 {[%clk 0:02:12]}  Rf6 {[%clk 0:02:04]} 19. Bb4 {[%clk 0:02:11]}  a5 {[%clk 0:01:40]} 20. Rc2 {[%clk 0:02:10]}  Qxc2 {[%clk 0:01:37]} 21. Qxc2 {[%clk 0:02:09]}  axb4 {[%clk 0:01:37]} 22. axb4 {[%clk 0:02:10]}  Ne5 {[%clk 0:01:31]} 23. f4 {[%clk 0:02:05]}  Nd7 {[%clk 0:01:22]} 24. Bf3 {[%clk 0:02:04]}  Re8 {[%clk 0:01:22]} 25. Nb5 {[%clk 0:02:03]}  c5 {[%clk 0:01:12]} 26. g4 {[%clk 0:01:58]}  h6 {[%clk 0:01:04]} 27. Nc7 {[%clk 0:01:56]}  Re7 {[%clk 0:01:03]} 28. Nd5 {[%clk 0:01:54]}  Bxd5 {[%clk 0:01:01]} 29. cxd5 {[%clk 0:01:55]}  Ng3 {[%clk 0:00:55]} 30. Re1 {[%clk 0:01:54]}  Ne5 {[%clk 0:00:22]} 31. fxe5 {[%clk 0:01:51]}  Rxf3 {[%clk 0:00:23]} 32. Kg2 {[%clk 0:01:50]} 1-0


[Site "https://www.chess.com"]

[Event "Titled Tuesday Blitz August 24 2021"]
[White "Svane, Frederik"]
[Black "Tregubov, Pavel V."]
[WhiteFideId "12923044"]
[BlackFideId "4115341"]
[WhiteElo "2459"]
[BlackElo "2423"]
[Result "1-0"]
[Round "05"]
[TimeControl "180+1"]
[Date "2021.08.24"]
[WhiteClock "0:00:06"]
[BlackClock "0:00:13"]

1. e4 {[%clk 0:03:00]}  e6 {[%clk 0:02:55]} 2. d4 {[%clk 0:03:00]}  d5 {[%clk 0:02:55]} 3. Nd2 {[%clk 0:03:01]}  c5 {[%clk 0:02:55]} 4. exd5 {[%clk 0:03:01]}  exd5 {[%clk 0:02:54]} 5. Ngf3 {[%clk 0:03:01]}  Nc6 {[%clk 0:02:55]} 6. Bb5 {[%clk 0:03:01]}  Qe7+ {[%clk 0:02:55]} 7. Qe2 {[%clk 0:03:00]}  Qxe2+ {[%clk 0:02:55]} 8. Kxe2 {[%clk 0:03:00]}  a6 {[%clk 0:02:54]} 9. Bxc6+ {[%clk 0:02:55]}  bxc6 {[%clk 0:02:55]} 10. dxc5 {[%clk 0:02:56]}  Bxc5 {[%clk 0:02:54]} 11. Nb3 {[%clk 0:02:56]}  Bd6 {[%clk 0:02:54]} 12. Be3 {[%clk 0:02:56]}  Nf6 {[%clk 0:02:50]} 13. Bc5 {[%clk 0:02:54]}  Kd7 {[%clk 0:02:47]} 14. Rhe1 {[%clk 0:02:15]}  a5 {[%clk 0:02:47]} 15. Bxd6 {[%clk 0:01:57]}  Kxd6 {[%clk 0:02:47]} 16. Kf1 {[%clk 0:01:50]}  a4 {[%clk 0:02:40]} 17. Nbd4 {[%clk 0:01:45]}  Ne4 {[%clk 0:02:00]} 18. Rad1 {[%clk 0:01:44]}  Re8 {[%clk 0:01:59]} 19. Kg1 {[%clk 0:01:36]}  Bd7 {[%clk 0:01:42]} 20. c4 {[%clk 0:01:24]}  c5 {[%clk 0:01:39]} 21. Nc2 {[%clk 0:01:05]}  d4 {[%clk 0:01:37]} 22. Ncxd4 {[%clk 0:01:03]}  Kc7 {[%clk 0:01:22]} 23. Nc2 {[%clk 0:00:59]}  Bc6 {[%clk 0:01:21]} 24. Ne3 {[%clk 0:00:57]}  Rab8 {[%clk 0:01:19]} 25. Re2 {[%clk 0:00:55]}  Nd6 {[%clk 0:01:12]} 26. Red2 {[%clk 0:00:53]}  Bxf3 {[%clk 0:00:59]} 27. gxf3 {[%clk 0:00:51]}  Re6 {[%clk 0:00:59]} 28. Kf1 {[%clk 0:00:44]}  Kc6 {[%clk 0:00:56]} 29. h4 {[%clk 0:00:32]}  Rb4 {[%clk 0:00:51]} 30. Rc2 {[%clk 0:00:30]}  Rh6 {[%clk 0:00:47]} 31. Ke2 {[%clk 0:00:27]}  Re6 {[%clk 0:00:40]} 32. Kf1 {[%clk 0:00:20]}  Rb7 {[%clk 0:00:28]} 33. Rd5 {[%clk 0:00:18]}  Rb4 {[%clk 0:00:27]} 34. Rd3 {[%clk 0:00:18]}  Rb7 {[%clk 0:00:26]} 35. Rcd2 {[%clk 0:00:17]}  Rb4 {[%clk 0:00:25]} 36. b3 {[%clk 0:00:17]}  axb3 {[%clk 0:00:25]} 37. axb3 {[%clk 0:00:18]}  Rb7 {[%clk 0:00:25]} 38. h5 {[%clk 0:00:16]}  h6 {[%clk 0:00:24]} 39. Ra2 {[%clk 0:00:16]}  Rb4 {[%clk 0:00:18]} 40. Ra6+ {[%clk 0:00:14]}  Rb6 {[%clk 0:00:18]} 41. Ra7 {[%clk 0:00:14]}  Rb7 {[%clk 0:00:19]} 42. Ra5 {[%clk 0:00:14]}  Kb6 {[%clk 0:00:16]} 43. Ra1 {[%clk 0:00:11]}  Kc6 {[%clk 0:00:16]} 44. Nd5 {[%clk 0:00:11]}  Nf5 {[%clk 0:00:15]} 45. Ra6+ {[%clk 0:00:10]}  Kd7 {[%clk 0:00:15]} 46. Nf4+ {[%clk 0:00:05]}  Nd4 {[%clk 0:00:15]} 47. Nxe6 {[%clk 0:00:05]}  fxe6 {[%clk 0:00:16]} 48. b4 {[%clk 0:00:05]}  Rxb4 {[%clk 0:00:14]} 49. Ra7+ {[%clk 0:00:05]}  Kd6 {[%clk 0:00:15]} 50. Rxg7 {[%clk 0:00:06]}  Rxc4 {[%clk 0:00:15]} 51. Rg6 {[%clk 0:00:07]}  Rc1+ {[%clk 0:00:16]} 52. Kg2 {[%clk 0:00:07]}  Kd5 {[%clk 0:00:15]} 53. Rxh6 {[%clk 0:00:06]}  c4 {[%clk 0:00:15]} 54. Ra3 {[%clk 0:00:06]}  c3 {[%clk 0:00:15]} 55. Rh8 {[%clk 0:00:07]}  c2 {[%clk 0:00:14]} 56. Rd8+ {[%clk 0:00:07]}  Ke5 {[%clk 0:00:14]} 57. Ra5+ {[%clk 0:00:05]}  Kf6 {[%clk 0:00:13]} 58. Rxd4 {[%clk 0:00:05]}  Rg1+ {[%clk 0:00:13]} 59. Kxg1 {[%clk 0:00:05]}  c1=Q+ {[%clk 0:00:13]} 60. Kg2 {[%clk 0:00:05]}  Qc3 {[%clk 0:00:13]} 61. Raa4 {[%clk 0:00:05]}  e5 {[%clk 0:00:13]} 62. Rh4 {[%clk 0:00:04]}  Kg5 {[%clk 0:00:13]} 63. Rag4+ {[%clk 0:00:05]}  Kf5 {[%clk 0:00:12]} 64. h6 {[%clk 0:00:05]}  Qc8 {[%clk 0:00:13]} 65. h7 {[%clk 0:00:05]}  Qh8 {[%clk 0:00:13]} 66. Rg8 {[%clk 0:00:06]}  Qf6 {[%clk 0:00:13]} 67. h8=Q {[%clk 0:00:06]} 1-0


[Site "https://www.chess.com"]